[Event "USA Junior-ch 2022"]
[Site "Saint Louis"]
[Date "2022.07.09"]
[Round "3.1"]
[White "Yip, Carissa"]
[Black "Jacobson, Brandon"]
[Result "0-1"]
[ECO "C54"]
[WhiteElo "2416"]
[BlackElo "2544"]
[Annotator "TA"]
[PlyCount "73"]
[EventDate "2022.07.07"]
[EventType "tourn"]
[EventCountry "USA"]
[SourceTitle "playchess.com"]
[Source "ChessBase"]
[SourceQuality "1"]
[TimeControl "40/5400+30:1800+30"]

{[%evp 11,73,12,18,19,29,8,14,-9,-11,-24,-8,-26,-21,-23,-37,-22,-33,-83,-84,-73,-87,-94,-85,-75,-59,-53,-35,-29,-23,-37,-32,-112,-105,-113,-41,-164,-156,-195,-170,-190,-131,-141,-143,-187,-130,-245,-238,-245,-237,-308,-287,-282,-260,-337,-321,-687,-670,-625,-310,-293,-242,-1502,-1441,-29999]} 1. e4 {[%emt 0:00:04]} e5 {[%emt 0:00:09]} 2. Nf3 {[%emt 0:00:30]} Nc6 {[%emt 0:00:06]} 3. Bc4 {[%emt 0:00:03]} Bc5 {[%emt 0:00:17]} 4. O-O {[%emt 0:00:06]} Nf6 {[%emt 0:00:05]} 5. d3 {[%emt 0:00:04]} d6 {[%emt 0:00:07]} 6. c3 {[%emt 0:00:53]} a6 {[%emt 0:00:04]} 7. a4 {[%emt 0:00:09] C54: Giuoco Piano: 4 c3 Nf6, main lines with 5 d4 and 5 d3.} Ba7 {[%emt 0:00:06]} 8. Re1 {[%emt 0:00:20]} O-O $1 {[%emt 0:00:08] The main line 8...0-0 scores better than 8...h6.} 9. Nbd2 {[%emt 0:00:42] The position is equal.} Ng4 {[%emt 0:00:21]} 10. Re2 {[%emt 0:01:22]} Kh8 {[%emt 0:00:04]} 11. h3 {[%emt 0:00:50]} f5 {[%emt 0:00:06]} 12. Nf1 {[%emt 0:22:03]} fxe4 {[%emt 0:34:50]} 13. dxe4 {[%emt 0:00:05] [#]} Rxf3 $5 $146 {[%emt 0:00:05][%mdl 8] An interesting novelty.} ({Predecessor:} 13... Nh6 14. Re1 Qf6 15. Ng3 Bxh3 16. Bg5 Qg6 17. gxh3 Rxf3 18. Qxf3 Qxg5 19. Kh2 Ne7 {0-1 (62) Alekseenko,K (2671)-Ding,L (2811) Khanty-Mansiysk 2019}) 14. hxg4 {[%emt 0:18:18]} (14. gxf3 $15 Nh6 15. Be3) 14... Rf8 {[%emt 0:07:41]} 15. Ne3 {[%emt 0:00:06]} Qh4 {[%emt 0:01:18]} 16. f3 {[%emt 0:00:21]} Ne7 {[%emt 0:05:18]} 17. Qe1 {[%emt 0:04:15]} Qg5 {[%emt 0:00:19] Black is more active.} (17... Qf6 $5 {[%cal Re7g6]} 18. Qg3 Ng6 $17) 18. Rf2 $1 {[%emt 0:02:48][%cal Oe3f5]} Qf6 {[%emt 0:08:57]} 19. g3 {[%emt 0:20:46]} Be6 {[%emt 0:00:26]} 20. Bd3 {[%emt 0:00:11]} d5 $36 {[%emt 0:04:08][%mdl 2048] Black is pushing.} 21. exd5 {[%emt 0:00:13]} (21. Kg2 $15) 21... Bxd5 $17 {[%emt 0:00:51]} (21... Nxd5 $6 22. Be4 Rad8 23. c4 $11) 22. Nxd5 {[%emt 0:05:47]} Nxd5 {[%emt 0:07:07]} (22... Bxf2+ $17 23. Qxf2 Nxd5) 23. Be4 {[%emt 0:05:09] This move loses the game for White.} Qe6 $19 {[%emt 0:00:42]} (23... Bxf2+ 24. Qxf2 Rad8 25. Qe2 $17) 24. a5 {[%emt 0:07:24]} Rad8 {[%emt 0:05:29]} 25. Bg5 {[%emt 0:00:10]} Bxf2+ {[%emt 0:06:45]} (25... Rd6 $19 26. Kg2 h6) 26. Qxf2 $17 {[%emt 0:00:04]} Nf6 {[%emt 0:00:04]} 27. Bf5 {[%emt 0:00:04]} Qf7 {[%emt 0:00:05]} ({Black should try} 27... Qc6 $19 {White must now prevent ...g6.} 28. Qe3 h6 29. Bxf6 (29. Bxh6 $2 Nd5 $19) 29... Rxf6) 28. Qh2 {[%emt 0:04:59] [#]} (28. Rf1 $17) 28... g6 $1 $19 {[%emt 0:01:13]} 29. Bc2 {[%emt 0:00:50] [#]} e4 $1 {[%emt 0:02:31]} 30. fxe4 {[%emt 0:02:39]} Nxg4 {[%emt 0:01:26]} 31. Qe2 {[%emt 0:00:06] [#]} Rde8 {[%emt 0:00:22]} 32. Bf4 {[%emt 0:00:38]} (32. Rc1 h5) 32... g5 {[%emt 0:06:44]} 33. Bxg5 {[%emt 0:00:17]} (33. Be3 Nxe3 34. Qxe3) 33... Qh5 {[%emt 0:00:07]} 34. Be3 {[%emt 0:01:19]} c5 {[%emt 0:00:05] Inhibits Bd4+.} (34... Rd8 $142 {Threatens to win with ...Qh3.} 35. Rd1 (35. Bd4+ $2 Rxd4 36. cxd4 Rf2 $19) 35... Qh3) 35. Rd1 {[%emt 0:03:30]} Rf6 {[%emt 0:05:37]} ({Weaker is} 35... Qh3 36. Bxc5 Qxg3+ 37. Qg2 $11) 36. Rd5 $2 {[%emt 0:00:46]} (36. Bb3 Rff8 37. Bc2 (37. Bf4 $2 Rxe4 38. Qg2 c4 $19)) 36... Qh3 {[%emt 0:00:09][%cal Of6f1] ( -> ...Rf1+!)} 37. Qe1 {[%emt 0:00:32] Inhibits Rf1+.  Weighted Error Value: White=0.57/Black=0.21 (precise)} 0-1

[Event "USA Junior-ch 2022"]
[Site "Saint Louis"]
[Date "2022.07.09"]
[Round "3.2"]
[White "Daggupati, Balaji"]
[Black "Brodsky, David"]
[Result "1/2-1/2"]
[ECO "B53"]
[WhiteElo "2488"]
[BlackElo "2496"]
[Annotator "TA"]
[PlyCount "55"]
[EventDate "2022.07.07"]
[EventType "tourn"]
[EventCountry "USA"]
[SourceTitle "playchess.com"]
[Source "ChessBase"]
[SourceQuality "1"]
[TimeControl "40/5400+30:1800+30"]

{[%evp 22,55,-23,-28,-29,-29,-22,-29,-31,-29,16,18,18,23,16,12,11,11,11,12,11,10,7,0,1,8,26,0,0,0,0,0,0,0,0,0]} 1. e4 {[%emt 0:00:03]} c5 {[%emt 0:00:05]} 2. Nf3 {[%emt 0:00:07]} d6 {[%emt 0:00:03]} 3. d4 {[%emt 0:00:04]} cxd4 {[%emt 0:00:03]} 4. Qxd4 {[%emt 0:00:06]} Nf6 {[%emt 0:00:19]} 5. Nc3 {[%emt 0:00:09]} Nc6 {[%emt 0:00:07]} 6. Bb5 {[%emt 0:00:06]} Bd7 {[%emt 0:00:03]} 7. Bxc6 {[%emt 0:00:06]} Bxc6 {[%emt 0:00:05]} 8. Bg5 {[%emt 0:00:09]} e6 {[%emt 0:00:08]} 9. O-O-O {[%emt 0:00:06]} Be7 {[%emt 0:00:06]} 10. Rhe1 {[%emt 0:00:04]} O-O {[%emt 0:00:44][%cal Bh8f8,Bf8c8,Bc8c3][%mdl 32]} 11. Kb1 {[%emt 0:00:05]} h6 {[%emt 0:03:21]} 12. Bh4 {[%emt 0:01:40]} b5 {[%emt 0:00:18] B53: Sicilian: 2...d6: Lines with Qxd4.} 13. Bxf6 {[%emt 0:00:36]} Bxf6 {[%emt 0:01:16]} 14. Qxd6 {[%emt 0:00:07]} Qb6 {[%emt 0:08:04] Black has an edge.} 15. Ne5 {[%emt 0:00:49] [#]} Rfc8 $146 {[%emt 0:07:11] [#] And now ...b4 would win.} (15... Bxe5 $5 16. Qxe5 b4 $11) ({Predecessor:} 15... Bxe5 16. Qxe5 b4 17. Ne2 Qxf2 18. Nf4 Kh7 19. Nh5 Rg8 20. Rf1 Qe2 21. Rde1 Qd2 {0-1 (46) Zhigalko,S (2572)-Preotu,R (2473) Chess.com INT 2021}) 16. Nd7 {[%emt 0:08:03]} ({Don't play} 16. Nxc6 Rxc6 17. Qf4 Bxc3 18. bxc3 b4 $15) 16... Bxd7 {[%emt 0:00:42] A strong pair of Bishops.} 17. Qxb6 {[%emt 0:09:17]} axb6 {[%emt 0:00:12]} 18. Rxd7 {[%emt 0:11:54]} Bxc3 {[%emt 0:37:14]} 19. bxc3 {[%emt 0:00:10]} Rxc3 $11 {[%emt 0:00:08][%mdl 4096] Endgame KRR-KRR} 20. Red1 {[%emt 0:06:17]} Ra4 {[%emt 0:01:59]} 21. R1d4 {[%emt 0:10:09]} g5 {[%emt 0:09:30]} 22. Kb2 {[%emt 0:17:46]} Rca3 {[%emt 0:02:29]} 23. Rxa4 {[%emt 0:01:20]} Rxa4 {[%emt 0:00:05]} 24. f3 {[%emt 0:01:21]} Rb4+ {[%emt 0:01:19] The position is equal.} 25. Kc1 {[%emt 0:11:03]} Ra4 {[%emt 0:00:41]} 26. Kb2 {[%emt 0:01:24]} Rb4+ {[%emt 0:00:05]} 27. Kc1 {[%emt 0:06:50]} Ra4 {[%emt 0:00:05]} 28. Kb2 {[%emt 0:00:17] A balanced but interesting game.  Weighted Error Value: White=0.02 (flawless) /Black=0.03 (flawless)} 1/2-1/2

[Event "USA Junior-ch 2022"]
[Site "Saint Louis"]
[Date "2022.07.09"]
[Round "3.3"]
[White "Wang, Justin"]
[Black "Hong, Andrew"]
[Result "1/2-1/2"]
[ECO "A34"]
[WhiteElo "2469"]
[BlackElo "2504"]
[Annotator "TA"]
[PlyCount "78"]
[EventDate "2022.07.07"]
[EventType "tourn"]
[EventCountry "USA"]
[SourceTitle "playchess.com"]
[Source "ChessBase"]
[SourceQuality "1"]
[TimeControl "40/5400+30:1800+30"]

{[%evp 24,78,18,23,22,33,37,0,0,0,0,-12,0,-11,0,0,0,0,0,0,-4,0,50,9,10,0,0,0,0,0,0,0,0,0,0,0,0,0,0,0,0,0,0,0,0,0,0,0,0,0,0,0,0,0,0,0,0]} 1. Nf3 {[%emt 0:01:33]} Nf6 {[%emt 0:00:30]} 2. c4 {[%emt 0:00:56]} c5 {[%emt 0:01:33]} 3. Nc3 {[%emt 0:01:40][%cal Bb1c3,Bc3d1,Bd1e3][%mdl 32]} Nc6 {[%emt 1:29:57]} 4. g3 {[%emt 0:02:05]} d5 {[%emt 0:00:00]} 5. d4 {[%emt 0:06:16]} cxd4 {[%emt 0:00:00]} 6. Nxd4 {[%emt 0:00:05]} dxc4 {[%emt 0:00:00]} 7. Nxc6 {[%emt 0:01:10]} Qxd1+ {[%emt 0:00:00]} 8. Nxd1 {[%emt 0:03:58]} bxc6 {[%emt 0:00:00]} 9. Bg2 {[%emt 0:04:32]} Nd5 {[%emt 0:00:00]} 10. Ne3 {[%emt 0:01:03]} e6 {[%emt 0:00:00]} 11. Nxc4 {[%emt 0:00:19]} Ba6 {[%emt 0:00:00]} 12. b3 {[%emt 0:10:29]} Bb4+ {[%emt 0:00:00]} 13. Bd2 {[%emt 0:00:18]} Ke7 {[%emt 0:00:00] A34: Symmetrical English: 2 Nc3, lines with ...d5.} 14. Rc1 {[%emt 0:01:18]} Rac8 {[%emt 0:00:00] [#]} 15. a3 $146 {[%emt 0:05:15]} ({Predecessor:} 15. Bxb4+ Nxb4 16. a3 Nd5 17. f4 c5 18. Kf2 Bxc4 19. Rxc4 Nb6 20. Rc2 c4 21. b4 {½-½ (80) Sjugirov,S (2652)-Nihal,S (2532) Moscow 2018}) 15... Bxd2+ {[%emt 0:00:00]} 16. Nxd2 {[%emt 0:02:57]} c5 {[%emt 0:00:00]} 17. Bf3 {[%emt 0:17:44]} Rhd8 {[%emt 0:00:00]} 18. Rc2 {[%emt 0:00:14]} f5 {[%emt 0:00:00]} 19. O-O {[%emt 0:08:14]} g5 {[%emt 0:00:00]} 20. h3 {[%emt 0:03:55] Prevents g4.} Nf6 {[%emt 0:00:00]} 21. Nc4 {[%emt 0:00:16]} Bxc4 {[%emt 0:00:00]} 22. Rxc4 {[%emt 0:00:12]} Rb8 {[%emt 0:00:00]} (22... Rd4 $11) 23. Rb1 {[%emt 0:04:28]} (23. Rxc5 $5 {[%cal Rb3b4]} Rxb3 24. Ra5 $14) 23... Rdc8 {[%emt 0:00:00] The position is equal.} 24. b4 {[%emt 0:05:23]} cxb4 {[%emt 0:00:00]} 25. Rxc8 {[%emt 0:00:08]} Rxc8 {[%emt 0:00:00]} 26. Rxb4 $11 {[%emt 0:00:02][%mdl 4096] Endgame KRB-KRN} Rc7 {[%emt 0:00:00]} 27. g4 {[%emt 0:00:18]} Nd7 {[%emt 0:00:00]} 28. h4 {[%emt 0:01:28]} h6 {[%emt 0:00:00][%cal Bh7h6,Bh6g5,Bg5g4][%mdl 32]} 29. hxg5 {[%emt 0:00:31]} hxg5 {[%emt 0:00:00]} 30. gxf5 {[%emt 0:01:03]} exf5 {[%emt 0:00:00]} 31. Rb5 {[%emt 0:01:37]} Kf6 {[%emt 0:00:06]} 32. Ra5 {[%emt 0:00:30]} g4 {[%emt 0:00:47]} 33. Bg2 {[%emt 0:00:17]} Ne5 {[%emt 0:01:17]} 34. e3 {[%emt 0:01:18]} Ng6 {[%emt 0:06:49]} 35. Kh2 {[%emt 0:00:20]} Ne5 {[%emt 0:01:39]} 36. Kg3 {[%emt 0:00:55]} Nc4 {[%emt 0:00:06]} 37. Ra6+ {[%emt 0:00:16]} Ke5 {[%emt 0:01:36]} 38. Bf1 {[%emt 0:00:34]} Nd6 {[%emt 0:00:47]} 39. Bg2 {[%emt 0:02:47]} Nc4 {[%emt 0:01:13] Not much happened in this game.  Weighted Error Value: White=0.04 (flawless) /Black=0.03 (flawless)} 1/2-1/2

[Event "USA Junior-ch 2022"]
[Site "Saint Louis"]
[Date "2022.07.09"]
[Round "3.4"]
[White "Yoo, Christopher Woojin"]
[Black "Espinosa, Pedro"]
[Result "1-0"]
[ECO "D10"]
[WhiteElo "2550"]
[BlackElo "2130"]
[Annotator "TA"]
[PlyCount "69"]
[EventDate "2022.07.07"]
[EventType "tourn"]
[EventCountry "USA"]
[SourceTitle "playchess.com"]
[Source "ChessBase"]
[SourceQuality "1"]
[TimeControl "40/5400+30:1800+30"]

{[%evp 12,69,25,24,24,29,23,21,33,36,38,10,6,3,10,-8,0,-21,-10,-8,0,0,0,0,16,0,41,27,38,36,38,22,32,28,44,0,14,0,65,15,41,9,41,0,0,0,0,0,55,68,669,673,1155,1072,1289,1215,1268,1262,1979,1003]} 1. d4 {[%emt 0:00:04]} d5 {[%emt 0:00:12]} 2. c4 {[%emt 0:00:06]} c6 {[%emt 0:00:19]} 3. Nc3 {[%emt 0:00:08]} Nf6 {[%emt 0:00:17]} 4. cxd5 {[%emt 0:00:07]} cxd5 {[%emt 0:00:31]} 5. Bf4 {[%emt 0:00:06]} Nc6 {[%emt 0:00:51]} 6. e3 {[%emt 0:00:09]} a6 {[%emt 0:00:54]} 7. Be2 {[%emt 0:00:10]} Bf5 {[%emt 0:01:55] D10: Slav Defence: 3 cxd5 (without early Nf3) and 3 Nc3.} 8. Nf3 {[%emt 0:00:17]} Nh5 {[%emt 0:02:18]} 9. Bg5 {[%emt 0:11:34] next Nh4 is good for White.} h6 {[%emt 0:05:18] The position is equal.} 10. Bh4 {[%emt 0:01:14]} g5 {[%emt 0:02:33]} 11. Bg3 {[%emt 0:01:14]} (11. Ne5 $5) 11... Nxg3 {[%emt 0:02:18]} 12. hxg3 {[%emt 0:00:09][%cal Bh2g3,Bg3g4][%mdl 32] With the idea Nxg5.} e6 {[%emt 0:01:19] [#]} 13. Nd2 $146 {[%emt 0:04:20]} ({Predecessor:} 13. Rc1 Rc8 14. a3 Bd6 15. b4 Kf8 16. Na4 Kg7 17. Nc5 Qe7 18. Qd2 h5 19. Bd3 Bxd3 20. Qxd3 {0-1 (46) Cordts,I (2214)-Rosner,J (2434) Playchess.com INT 2021}) 13... Rc8 {[%emt 0:08:12]} 14. O-O {[%emt 0:03:43]} Bd6 {[%emt 0:05:54]} 15. Nb3 {[%emt 0:05:21]} Qf6 {[%emt 0:06:45][%cal Oh6h5]} 16. g4 {[%emt 0:15:10]} Bg6 {[%emt 0:02:45][%cal Oh6h5]} 17. g3 {[%emt 0:01:01]} Ke7 {[%emt 0:05:36]} 18. Kg2 {[%emt 0:02:41]} Qg7 {[%emt 0:08:05]} 19. Rh1 {[%emt 0:04:30]} f5 {[%emt 0:03:21]} 20. gxf5 {[%emt 0:01:30]} Bxf5 {[%emt 0:00:19]} 21. Bd3 {[%emt 0:01:32]} Qg6 {[%emt 0:05:44]} 22. Bxf5 {[%emt 0:01:42]} Qxf5 {[%emt 0:00:54]} 23. g4 {[%emt 0:00:39]} Qf7 {[%emt 0:04:22][%cal Oh6h5]} 24. Qe2 {[%emt 0:05:51]} Rcg8 {[%emt 0:08:36]} ({Better is} 24... Kf8 $11) 25. Rh5 {[%emt 0:01:40]} (25. Rh3 $14) 25... Rg6 {[%emt 0:02:07][%cal Bg8g6,Bg6f6,Bf6f3][%mdl 32]} 26. Rah1 {[%emt 0:01:33]} Rf6 {[%emt 0:01:34]} 27. e4 {[%emt 0:01:44][%cal Be3e4,Be4d5][%mdl 32] e5 is the strong threat.} Rf8 {[%emt 0:03:00][%cal Rf6f2]} 28. Rf1 $36 {[%emt 0:00:21][%mdl 2048] aiming for e5. White has the initiative.} Rf3 $1 {[%emt 0:03:41] White must now prevent ...Qf4.} 29. exd5 {[%emt 0:01:41] Chess con chili.} (29. Rxh6 Qf4 30. Nxd5+ (30. exd5 Qxg4+ 31. Kh1 Rh3+ 32. Rxh3 Qxh3+ 33. Kg1 Qh2#) 30... exd5 $19) 29... Qf4 {[%emt 0:01:36]} (29... Kd8 $1 $11 30. Rxh6 (30. dxc6 $2 Qf4 $19) 30... Qf4) 30. Qxe6+ $14 {[%emt 0:00:13]} Kd8 {[%emt 0:00:10][%cal Rf3f2] [#] Black cannot hold the game after this.} 31. Ne4 {[%emt 0:00:18] White is clearly winning.} (31. dxc6 $2 {[#]} Rg3+ $3 {[%mdl 512]} 32. fxg3 Qxg3+ 33. Kh1 Rxf1#) 31... Rg3+ {[%emt 0:04:00]} 32. Nxg3 {[%emt 0:00:33]} Qf3+ {[%emt 0:00:12]} 33. Kh3 {[%emt 0:00:32]} Bxg3 {[%emt 0:01:08]} 34. Nd2 {[%emt 0:00:28]} (34. fxg3 $2 {leads to mate.} Qxf1+ 35. Kh2 Rf2#) 34... Qd3 {[%emt 0:01:20]} 35. Qe3 {[%emt 0:00:16] Weighted Error Value: White=0.11 (very precise) /Black=0.17 (very precise)} 1-0

[Event "USA Junior-ch 2022"]
[Site "Saint Louis"]
[Date "2022.07.10"]
[Round "3.5"]
[White "Mishra, Abhimanyu"]
[Black "Liang, Awonder"]
[Result "1-0"]
[ECO "C54"]
[WhiteElo "2553"]
[BlackElo "2625"]
[Annotator "TA"]
[PlyCount "169"]
[EventDate "2022.07.07"]
[EventType "tourn"]
[EventCountry "USA"]
[SourceTitle "playchess.com"]
[Source "ChessBase"]
[SourceQuality "1"]
[TimeControl "40/5400+30:1800+30"]

{[%evp 12,169,18,17,33,33,37,23,36,35,25,20,37,29,49,47,47,43,49,25,18,24,28,0,16,-12,-8,-7,-12,-16,-17,-27,-31,-14,-10,-11,-15,-12,-11,-15,-19,-28,0,-5,13,-43,-46,-48,-45,-44,-42,-54,0,-45,-44,-62,-44,-99,-99,-99,-99,-99,-100,-99,-99,-99,-99,-108,-108,-101,-108,-108,-102,-108,-108,-108,-108,-122,-127,-133,-126,-123,-108,-127,-101,-101,-101,-101,-101,-101,-100,-100,-100,-101,-100,-121,-130,-121,-121,-150,-101,-102,-99,-115,-108,-106,-99,-204,-216,-300,-156,-336,-355,-475,-334,-780,-763,-1502,-1475,-1449,-1380,-29962,-6311,-3746,6111,5293,5738,2547,1511,12847,29942,29942,29943,6533,12844,5639,29950,10436,29955,6211,29967,29968,29956,29954,29972,29975,29975,29976,29976,29978,29978,29979,29979,29980,29980,29981,29983,29984,29986,29987]} 1. e4 {[%emt 0:00:02]} e5 {[%emt 0:00:05]} 2. Nf3 {[%emt 0:00:06]} Nc6 {[%emt 0:00:05]} 3. Bc4 {[%emt 0:00:15]} Bc5 {[%emt 0:00:02]} 4. c3 {[%emt 0:00:15]} Nf6 {[%emt 0:00:02]} 5. d3 {[%emt 0:00:14]} d6 {[%emt 0:00:05]} 6. O-O {[%emt 0:00:24]} O-O {[%emt 0:00:02]} 7. Re1 {[%emt 0:00:36] is now debated instead of 7.Bb3.} a5 {[%emt 0:00:03] C54: Giuoco Piano: 4 c3 Nf6, main lines with 5 d4 and 5 d3.} 8. Bg5 {[%emt 0:01:10][%cal Bc1g5,Bg5h4,Bh4g3,Bg3h2][%mdl 32]} h6 {[%emt 0:00:12]} 9. Bh4 {[%emt 0:00:24]} g5 {[%emt 0:00:10] White has an edge.} 10. Bg3 {[%emt 0:00:38]} Ba7 {[%emt 0:00:02]} 11. Na3 {[%emt 0:01:30][%cal Bb1a3,Ba3c2,Bc2e3,Be3f5][%mdl 32]} Bg4 {[%emt 0:01:24]} 12. Nc2 {[%emt 0:05:26] [#]} h5 $146 {[%emt 0:12:42] [#] White must now prevent ...h4.} ({Predecessor:} 12... Bh5 13. h3 Kg7 14. Ne3 Ne7 15. Bb3 Qd7 16. Bc2 Bxe3 17. Rxe3 Ng6 18. d4 Qb5 {½-½ (50) Duda,J (2743)-Anton Guijarro,D (2679) Wijk aan Zee 2021}) 13. h3 $1 {[%emt 0:18:41]} h4 {[%emt 0:01:16]} 14. Bh2 {[%emt 0:00:36]} Bh5 {[%emt 0:00:03]} 15. Qd2 {[%emt 0:09:50]} Nh7 {[%emt 0:00:43]} 16. Ne3 {[%emt 0:07:19]} Kh8 {[%emt 0:04:47]} 17. Nf5 {[%emt 0:04:38]} Qf6 {[%emt 0:13:42]} (17... Bxf3 $5 18. gxf3 Ne7 $11) 18. Bd5 {[%emt 0:04:43]} Ne7 {[%emt 0:09:17]} 19. Nxe7 {[%emt 0:11:23]} Qxe7 {[%emt 0:00:32]} 20. d4 {[%emt 0:00:05][%cal Rd4e5]} c6 {[%emt 0:04:13] aiming for ...Bxf3.} 21. Bc4 {[%emt 0:05:28][%cal Rd4e5]} Bxf3 {[%emt 0:02:33]} 22. gxf3 {[%emt 0:00:16]} Qf6 {[%emt 0:03:34]} 23. Kg2 {[%emt 0:01:28]} Rfd8 {[%emt 0:02:22]} ({Don't play} 23... exd4 24. e5 Qh6 25. exd6 $18) (23... g4 $2 24. fxg4 Rfe8 25. d5 $16) 24. Rad1 {[%emt 0:03:31]} Nf8 {[%emt 0:00:09]} 25. a4 {[%emt 0:01:35]} Ng6 {[%emt 0:03:22]} 26. Bb3 {[%emt 0:04:07]} Rac8 {[%emt 0:01:11]} 27. Qd3 {[%emt 0:02:04]} Bb8 {[%emt 0:02:01]} 28. dxe5 {[%emt 0:17:46]} (28. Kh1 $11) 28... dxe5 $15 {[%emt 0:01:52]} 29. Qc4 {[%emt 0:00:00]} Kg7 {[%emt 0:00:20]} 30. Qc5 {[%emt 0:00:00]} Bd6 {[%emt 0:00:30]} 31. Qc4 {[%emt 0:00:00]} Bb8 {[%emt 0:07:04]} (31... Bc7 $15) 32. Ba2 {[%emt 0:00:00]} (32. Qc5 $5 {[%cal Rc5a5]}) 32... Ba7 {[%emt 0:00:20][%cal Og5g4] Threatens to win with ...g4!} 33. Qe2 $1 {[%emt 0:00:00]} Qe7 {[%emt 0:02:33]} 34. Rxd8 {[%emt 0:00:00]} ({Better is} 34. Bc4 $1 $15) 34... Rxd8 $17 {[%emt 0:00:02]} 35. Rd1 {[%emt 0:00:00]} Rxd1 {[%emt 0:00:09]} 36. Qxd1 {[%emt 0:00:00]} Kf8 {[%emt 0:12:07]} 37. Qd2 {[%emt 0:00:00]} Bc5 {[%emt 0:00:30] Against b4} 38. Bb3 {[%emt 0:00:00]} Ke8 {[%emt 0:00:11]} 39. Ba2 {[%emt 0:00:00]} f6 {[%emt 0:00:58]} 40. Qd3 {[%emt 0:01:10]} Nf8 {[%emt 0:00:24]} 41. Qc4 {[%emt 0:06:30]} Kd8 {[%emt 0:00:21]} 42. Qe2 {[%emt 0:05:24]} Kc7 {[%emt 0:00:12]} 43. Qc4 {[%emt 0:02:39]} Nd7 {[%emt 0:00:07]} 44. Bg1 {[%emt 0:01:29]} Nb6 {[%emt 0:00:54]} 45. Qb3 {[%emt 0:00:39]} Qd7 {[%emt 0:00:32]} 46. Qc2 {[%emt 0:00:56]} Kb8 {[%emt 0:00:05]} 47. Bb3 {[%emt 0:02:05]} Ka7 {[%emt 0:00:14]} 48. Qe2 {[%emt 0:02:36]} Nc8 {[%emt 0:02:11]} 49. Qc4 {[%emt 0:01:35]} Bb6 {[%emt 0:00:33]} 50. Qg8 {[%emt 0:02:24]} Ne7 {[%emt 0:02:35]} 51. Qf7 {[%emt 0:01:13]} Qd6 {[%emt 0:00:01]} 52. Bc4 {[%emt 0:05:19]} Bc5 {[%emt 0:02:28]} 53. Qg7 {[%emt 0:01:10]} Nc8 {[%emt 0:00:18][%cal Be7c8,Bc8b6,Bb6d7,Bd7c5,Bc5d3][%mdl 32]} 54. Qf7 {[%emt 0:01:12]} Nb6 {[%emt 0:00:40]} 55. Bb3 {[%emt 0:00:38]} Ka6 {[%emt 0:03:37]} ({Black should play} 55... Qd2 56. Qxf6 Qxb2 57. Qxe5 Nd7) 56. Qg6 {[%emt 0:01:32]} Nd7 {[%emt 0:01:11]} 57. Qf7 {[%emt 0:01:15]} Bb6 {[%emt 0:01:20]} 58. Be6 {[%emt 0:02:07]} Nc5 {[%emt 0:00:11][%csl LRa4,LRe6]} 59. Bc8 {[%emt 0:00:13]} (59. Bc4+ $17 Ka7 60. b3) 59... Qc7 $19 {[%emt 0:01:22]} 60. Qc4+ {[%emt 0:00:11]} Ka7 {[%emt 0:00:03]} 61. Bf5 $2 {[%emt 0:00:32]} (61. b4 $17 axb4 62. cxb4 (62. a5 b3 $11) 62... Qxc8 63. bxc5) 61... Qd6 {[%emt 0:00:14]} 62. f4 {[%emt 0:02:21]} exf4 {[%emt 0:01:17][%cal Be5f4,Bf4f3][%mdl 32]} 63. b4 $2 {[%emt 0:00:38]} (63. Qd4 Qxd4 64. cxd4 Nxa4 65. e5) 63... Nd3 {[%emt 0:03:22]} 64. bxa5 {[%emt 0:00:29]} f3+ {[%emt 0:00:02]} 65. Kf1 {[%emt 0:00:23]} Bc5 {[%emt 0:00:02][%cal Od6f4]} 66. Qb3 {[%emt 0:01:02] [#]} Nxf2 $1 {[%emt 0:09:20][%mdl 512] ( -> ...Qd3+)} 67. Qc2 {[%emt 0:00:17]} Qg3 $4 {[%emt 0:00:03][%mdl 8192]} 68. Qxf2 $1 $18 {[%emt 0:00:31]} Bxf2 {[%emt 0:00:01]} 69. Bxf2+ {[%emt 0:00:07]} Ka6 {[%emt 0:00:02]} 70. Bxg3 {[%emt 0:00:08]} hxg3 {[%emt 0:30:33][%mdl 4096] Endgame KB-KP} 71. Bg4 {[%emt 0:01:49]} f2 {[%emt 0:00:00]} 72. Kg2 {[%emt 0:00:09] Be2+ would kill now.} Kxa5 {[%emt 0:00:00]} 73. Bd1 {[%emt 0:00:51]} b6 {[%emt 0:00:00]} 74. Bc2 {[%emt 0:00:36]} (74. Be2 $142 Kxa4 75. c4 (75. Kxg3 b5 $14) 75... Kb4 76. Kxg3 Kc3 77. Kxf2 Kd4 78. Kf3 c5 79. Bf1) 74... Ka6 {[%emt 0:00:00]} 75. Bd3+ {[%emt 0:00:33]} Ka5 {[%emt 0:00:00]} 76. Kxg3 {[%emt 0:00:29] White mates.} Kxa4 {[%emt 0:00:00]} 77. c4 {[%emt 0:00:36]} Kb3 {[%emt 0:00:00]} 78. Kxf2 {[%emt 0:00:06]} Kb4 {[%emt 0:00:00]} 79. Ke3 {[%emt 0:00:59]} Kc5 {[%emt 0:00:00]} 80. e5 {[%emt 0:00:32]} fxe5 {[%emt 0:00:00]} 81. Ke4 {[%emt 0:00:06]} Kd6 {[%emt 0:00:00]} 82. Kf5 {[%emt 0:00:47]} b5 {[%emt 0:00:00]} 83. Kxg5 {[%emt 0:00:32]} bxc4 {[%emt 0:00:00]} 84. Bxc4 {[%emt 0:00:05]} Ke7 {[%emt 0:00:00]} 85. h4 {[%emt 0:01:35] Quite a comeback for White.  Weighted Error Value: White=0.10 (very precise) /Black=0.06 (flawless)} 1-0